Cogmind - Beta 13 @@@ ROGUE MODE // 2024.07.25 @ 13:47:18 Player: Necoji Result: Destroyed by G-34 Mercenary with Small Laser Performance ------------- Evolutions (1) 500 Regions Visited (2) 400 Robots Destroyed (7) 35 Value Destroyed (218) 218 Prototype IDs (2) 40 Alien Tech Used (0) 0 Bonus (0) 0 TOTAL SCORE: 1193 Bonus ------- None Cogmind --------- Core Integrity 0/400 Matter 440/450 Energy 100/100 System Corruption 0% Temperature Cool (6) Movement Core (150) Ox2 Location -9/Materials Parts ------- > --- POWER (1) -------- (None) > --- PROPULSION (3) --- (None) > --- UTILITY (3) ------ Small Storage Unit Large Matter Pod Improved Targeting Computer > --- WEAPON (2) ------- (None) > --- INVENTORY (8) ---- Light Ion Engine Light Ion Engine Light Nuclear Core Compact Wheel Seismic Detector Field Recycling Unit (0) Peak State ------------ > --- POWER ------------ Ion Engine > --- PROPULSION ------- Wheel Compact Wheel > --- UTILITY ---------- Improved Heat Sink Small Storage Unit Large Matter Pod > --- WEAPON ----------- EM Pulse Gun Light Assault Rifle > --- INVENTORY -------- Ion Engine Light Ion Engine Light Nuclear Core Compact Wheel Seismic Detector Field Recycling Unit EM Pulse Gun [Rating: 11] Favorites ----------- Power Ion Engine Engine Ion Engine Propulsion Wheel Wheel Wheel Hover Unit Backup Propulsion I Utility Small Storage Unit Device Improved Heat Sink Storage Small Storage Unit Processor Improved Targeting Computer Weapon Light Assault Rifle Energy Gun EM Pulse Gun Ballistic Gun Light Assault Rifle Build | -11 -10 -9 ------- Run | Yrd Mat Mat Slots Evolved 2 | . . 2 Power . | . . . Propulsion 1 | . . 1 Utility 1 | . . 1 Weapon . | . . . Parts Attached 12 | 6 1 5 Power 2 | 1 . 1 Engine 2 | 1 . 1 Core . | . . . Reactor . | . . . Propulsion 2 | 2 . . Treads . | . . . Leg . | . . . Wheel 2 | 2 . . Hover . | . . . Flight . | . . . Utility 4 | 1 1 2 Device 1 | . . 1 Storage 2 | 1 1 . Processor 1 | . . 1 Hackware . | . . . Protection . | . . . Artifact . | . . . Weapon 4 | 2 . 2 Energy Gun 3 | 1 . 2 Energy Cannon . | . . . Ballistic Gun 1 | 1 . . Ballistic Cannon . | . . . Launcher . | . . . Special Weapon . | . . . Impact Weapon . | . . . Slashing Weapon . | . . . Piercing Weapon . | . . . Special Melee Weapon . | . . . Unidentified Prototypes . | . . . Parts Lost 9 | . . 9 Power 2 | . . 2 Propulsion 2 | . . 2 Utility 1 | . . 1 Weapon 4 | . . 4 Highest Loss Streak 8 | . . 8 To Critical Strikes . | . . . Average Slot Usage (%) 90 | . 98 79 Engine 12 | . 14 10 Wheel 24 | . 28 18 Device 3 | . . 8 Storage 24 | . 26 22 Energy Gun 12 | . 14 9 Ballistic Gun 12 | . 14 9 Naked Turns . | . . . Heaviest Build 17 | 13 16 17 Greatest Support 26 | 26 26 26 Greatest Overweight (x) 4 | . . 4 Average Overweight (x) . | . . . Largest Inventory Capacity 8 | 8 8 8 Average Capacity 7 | 6 8 8 Most Carried 8 | 6 8 8 Average Carried 6 | 3 7 7 Final Capacity 8 | 8 8 8 Final Carried 8 | 6 8 6 Class Distribution -------------------- 100% | Mutant Dominant Class ---------------- Mutant | -10/Materials Mutant | -9/Materials Resources | -11 -10 -9 ----------- Run | Yrd Mat Mat Matter Collected 399 | 215 103 81 Remotely . | . . . Salvage Created 250 | . 103 147 Parts 16 | . 9 7 Haulers Intercepted . | . . . Recyclers Shooed . | . . . Parts Field Recycled . | . . . Retrieved Matter . | . . . Parts Self-Destructed . | . . . Prevented . | . . . Kills | -11 -10 -9 ------- Run | Yrd Mat Mat Combat Hostiles Destroyed 5 | . 2 3 Guns 5 | . 2 3 Classes Destroyed 2 | . 1 1 Worker 2 | . . 2 Grunt 5 | . 2 3 Best Kill Streak 2 | . 2 2 Combat Bots Only 2 | . 2 2 Max Kills in Single Turn 2 | . 1 2 Gunslinging . | . . . Exploded . | . . . Melee . | . . . Uniques/NPCs Destroyed . | . . . Combat | -11 -10 -9 -------- Run | Yrd Mat Mat Hostile Shots Fired 89 | . 3 86 Missed 22 | . 1 21 Damage Taken 947 | . 29 918 Core 415 | . 13 402 Absorbed by Shields . | . . . Core Remaining (%) 97 | 100 94 . Volleys Fired 25 | . 4 21 Largest 2 | . 2 2 Hottest 60 | . 60 60 Shots Fired 48 | . 8 40 Gun 48 | . 8 40 Cannon . | . . . Launcher . | . . . Special . | . . . Kinetic 25 | . 4 21 Thermal . | . . . Explosive . | . . . Electromagnetic 23 | . 4 19 Robot Hit Streak 10 | . 5 10 Robot Miss Streak 1 | . 1 1 Penetration Max . | . . . Secondary Targets . | . . . Shots Hit Robots 40 | . 6 34 Core Hits 18 | . 5 13 Critical Kills . | . . . Critical Parts Destroyed . | . . . Critical Strikes . | . . . Melee Attacks . | . . . Impact . | . . . Slashing . | . . . Piercing . | . . . Sneak Attacks . | . . . Combat Hostiles . | . . . Follow-up Attacks . | . . . Damage Inflicted 794 | . 68 726 Guns 423 | . 65 358 Cannons . | . . . Explosions 361 | . . 361 Melee . | . . . Ramming 10 | . 3 7 Kinetic 182 | . 26 156 Thermal 361 | . . 361 Explosive . | . . . Electromagnetic 241 | . 39 202 Impact . | . . . Slashing . | . . . Piercing . | . . . Highest Corruption . | . . . Average Corruption . | . . . Corruption Purged . | . . . Corruption Blocked . | . . . Overload Shots . | . . . Overflow Damage 80 | . . 80 Projectiles . | . . . Explosions 80 | . . 80 Melee . | . . . Knockbacks . | . . . Impact . | . . . Kinetic . | . . . Secondary . | . . . Self-Inflicted Damage 128 | . 1 127 Shots 2 | . . 2 Rammed 3 | . 2 1 Targets Rammed 3 | . 2 1 Kicked . | . . . Crushed . | . . . Highest Temperature 49 | . 49 43 Average Temperature 18 | . 22 14 Received Heat Transfer 333 | . 18 315 Siege Activations . | . . . Robots Corrupted . | . . . Combat Hostiles . | . . . Parts Fried . | . . . Impact Corruptions . | . . . Robots Melted . | . . . Combat Hostiles . | . . . Parts Melted 1 | . . 1 Heat Transferred 300 | . . 300 Parts Sabotaged . | . . . Parts Stolen . | . . . Parts Stripped . | . . . Power Chain Reactions 1 | . . 1 Alert | -11 -10 -9 ------- Run | Yrd Mat Mat Peak Influence 214 | . 98 214 Initial 40 | . . 40 Average 76 | . 68 123 Maximum Alert Level 1 | . . 1 Low Security (%) 98 | 100 100 95 Level 1 1 | . . 4 Level 2 . | . . . Level 3 . | . . . Level 4 . | . . . Level 5 . | . . . High Security . | . . . Max Security . | . . . Squads Dispatched 1 | . . 1 Investigation 1 | . . 1 Extermination . | . . . Reinforcement . | . . . Assault . | . . . Garrison . | . . . Intercept . | . . . Searches Triggered . | . . . Construction Impeded . | . . . Haulers Reinforced . | . . . Active Scanning Responses . | . . . Cargo Convoy Interrupts . | . . . Stealth | -11 -10 -9 --------- Run | Yrd Mat Mat Distress Signals 3 | . . 3 Communications Jammed . | . . . Distress Signals . | . . . Times Spotted 17 | . 3 14 Peak Tracking Total 8 | . 2 8 Tactical Retreats 1 | . . 1 Traps | -11 -10 -9 ------- Run | Yrd Mat Mat Traps Triggered . | . . . Indirectly . | . . . Trap Hack Attempts . | . . . Triggered . | . . . Disarmed . | . . . Reprogrammed . | . . . Reused . | . . . Traps Extracted . | . . . Installed . | . . . Triggered . | . . . Machines | -11 -10 -9 ---------- Run | Yrd Mat Mat Machines Disabled 2 | . . 2 Max in Single Turn 2 | . . 2 Machines Repaired . | . . . Machines Dismantled . | . . . Machines Sabotaged . | . . . Overloaded Fab Kills . | . . . Hacking | -11 -10 -9 --------- Run | Yrd Mat Mat Machines Accessed 6 | . 4 2 Terminals 4 | . 3 1 Fabricators . | . . . Repair Stations 1 | . . 1 Recycling Units 1 | . 1 . Scanalyzers . | . . . Garrison Access . | . . . Total Hacks 23 | . 14 9 Successful 16 | . 10 6 Failed 7 | . 4 3 Catastrophic 2 | . 1 1 Database Lockouts . | . . . Manual . | . . . Terminals 14 | . 9 5 Fabricators . | . . . Repair Stations 4 | . . 4 Recycling Units 5 | . 5 . Scanalyzers . | . . . Garrison Access . | . . . Terminal Hacks 9 | . 6 3 Record 3 | . 2 1 Robot Analysis 1 | . . 1 Prototype ID Bank 1 | . 1 . Level Access Points 1 | . . 1 Repair Station Index 1 | . 1 . Hauler Manifests 1 | . 1 . Zone Layout 1 | . 1 . Fabricator Hacks . | . . . Repair Station Hacks 3 | . . 3 Scan Component 1 | . . 1 Repair 1 | . . 1 Refit 1 | . . 1 Recycling Unit Hacks 4 | . 4 . Recycle Component 1 | . 1 . Process 1 | . 1 . Report Inventory 1 | . 1 . Retrieve Matter 1 | . 1 . Scanalyzer . | . . . Garrison Access Hacks . | . . . Unauthorized Hacks . | . . . Terminals . | . . . Fabricators . | . . . Repair Stations . | . . . Recycling Units . | . . . Scanalyzers . | . . . Garrison Access . | . . . Data Cores Recovered . | . . . Used . | . . . Hacking Detections 5 | . 3 2 Full Trace Events 2 | . 1 1 Feedback Events . | . . . Feedback Blocked . | . . . Robot Schematics Acquired . | . . . Robots Built . | . . . Authchips . | . . . Time . | . . . Total Robot Build Rating . | . . . Part Schematics Acquired . | . . . Parts Built . | . . . Authchips . | . . . Time . | . . . Total Part Build Rating . | . . . Parts Repaired . | . . . Time 26 | . . 26 Parts Recycled 1 | . 1 . Recycled Matter 46 | . 46 . Retrieved Matter 46 | . 46 . Retrieved Components . | . . . Parts Scanalyzed . | . . . Part Schematics Acquired . | . . . Parts Damaged . | . . . Bothacking | -11 -10 -9 ------------ Run | Yrd Mat Mat Used RIF Installer . | . . . Robots Hacked . | . . . Non-combat . | . . . Combat . | . . . Robot Hacks Applied . | . . . Relay Couplers Released . | . . . Fabnet Peak Effective % . | . . . Robots Rewired . | . . . Allies Hacked . | . . . Hacks Repelled . | . . . Allies | -11 -10 -9 -------- Run | Yrd Mat Mat Total Allies . | . . . Largest Group . | . . . Highest-Rated Group . | . . . Highest-Rated Ally . | . . . Total Orders . | . . . Ally Attacks . | . . . Total Damage . | . . . Kills . | . . . Allies Corrupted . | . . . Allies Melted . | . . . Intel | -11 -10 -9 ------- Run | Yrd Mat Mat Robot Analysis Total 1 | . . 1 Derelict Logs Recovered . | . . . Drone Launches . | . . . Drone Recoveries . | . . . Exploration | -11 -10 -9 ------------- Run | Yrd Mat Mat Turns Passed 551 | 82 282 187 Spaces Moved 465 | 75 283 107 Core 15 | 3 . 12 Treads . | . . . Legs . | . . . Wheels 448 | 72 283 93 Hover 2 | . . 2 Flight . | . . . Fastest Speed 50 | 50 90 90 Average Speed 93 | 89 90 104 Slowest Speed 250 | 100 90 250 Overloaded Moves . | . . . Propulsion Burnouts . | . . . Robots Hopped . | . . . Cave-ins Triggered . | . . . Exploration Rate (%) 18 | 6 38 11 Regions Visited 2 Branch Regions . Pre-discovered Areas . | . . . Known Exits Taken . | . . . Unknown Exits Taken 2 | 1 1 . Scrap Searched . | . . . Spaces Dug . | . . . Terrain Destroyed 16 | . . 16 Melee . | . . . Projectile . | . . . AOE 16 | . . 16 Terrain Rammed . | . . . Walls Destroyed . | . . . Machines Disabled . | . . . Actions | -11 -10 -9 --------- Run | Yrd Mat Mat Total 536 | 86 304 146 Wait 15 | . 5 10 Move 463 | 74 282 107 Hop . | . . . Pick Up 15 | 6 7 2 Fast Attach 7 | 6 . 1 Attach 5 | . 1 4 Detach . | . . . Swap . | . . . Drop 3 | . 3 . Fire 25 | . 4 21 Melee . | . . . Ram 3 | . 2 1 Kick . | . . . Crush . | . . . Escape Stasis . | . . . Rewire . | . . . Trap . | . . . Miscellaneous . | . . . Route ------- -11/Scrapyard -10/Materials (discovered 2 exits: *Mat / [*Min]) -9/Materials (discovered 4 exits: Mat x3 / [*Min]) History --------- Turn | Location | Event 5 | -11/Scrapyard | Discovered new exit (range 16) 83 | -11/Scrapyard | Entered Materials 230 | -10/Materials | Discovered new exit (range 8) 277 | -10/Materials | Discovered new exit (range 13) 302 | -10/Materials | Build established: Mutant 365 | -10/Materials | Entered another Materials area 365 | -9/Materials | Evolved 2 slots: Propulsion x1, Utility x1 406 | -9/Materials | Discovered new exit (range 11) 415 | -9/Materials | Identified exit to Materials 538 | -9/Materials | Core integrity fell below 50% 547 | -9/Materials | Core integrity fell below 20% 552 | -9/Materials | Destroyed by G-34 Mercenary with Small Laser Last Messages --------------- 00522_ Destroyed Imp. Heat Sink. 00522_ Lgt. Assault Rifle destroyed. 00522_ Destroyed Lgt. Assault Rifle. 00522_ Backup Propulsion I destroyed. 00522_ Destroyed Backup Propulsion I. 00522_ K-01 Serf destroyed. 00522_ Wheel melted. 00522_ K-01 Serf destroyed. 00526_ EM Pulse Gun destroyed. 00526_ Acquired Backup Laser I. 00531_ Backup Laser I destroyed. 00531_ Wheel destroyed. 00534_ K-01 Serf collects debris. 00540_ Ion Engine destroyed. 00542_ Acquired Lgt. Ion Engine. 00542_ R-06 Scavenger collects Wheel. 00543_ K-01 Serf collects debris. 00545_ U-05 Engineer lays Concrete. 00547_ K-01 Serf collects debris. 00548_ U-05 Engineer lays Concrete. Map ----- +----------------------------------------------------+ | ??????????????????????????????? | | ??????????????????????????????? | | ??????????????????????????????? | | ??????????????????????????????? | | ??????????????????????????????? | | ??????????????????????????????? | | ??????????????????????????????? | | ??????????????????????????????? | | ??????????????????????????????? | | ??????????????????????????????? | | ??????????????????????????????? | | ??????????????????????????????? | | ??????????????????????????????? | | ??????#???????????????????????? | | ?????? ???????????????????????? | | ?????? ???????????????????????? | | ?????? ???????????????????????? | | ?????+ #??????????????????????? | | ?????# #??????????????????????? | | ?????# #??????????????????????? | | ?????+ ???? #??????????????? | | ?????# #???? #??????????????? | | ?????# #???? #??????????????? | | ?????# #???? #??????????????? | | ?????# #???# #??????????????? | | ?????#@#???# #??????????????? | | ?????# ##### #??????????????? | | ????##t;# # #??????????????? | | ??###;s; +??????????????? | | ??# #??????????????? | | ??# #??????????????? | | ??#= sg #??????????????? | | ??# s #??????????????? | | ??# Y #??????????????? | | ??# rg #????? #???????? | | ??# ! ; #???? #???????? | | ??# ; #???? #???????? | | ??# # #??? +???????? | | ??# ######## ##? #???????? | | ??##??????# # ?????????? | | ?########## # #???????? | | ?# # < / #???????? | | ?# [ # # #???????? | | ?# ] # # #???????? | | ?# ## ##?##??#???????? | | ?# ## #??????????????? | | ?# """ ## #??????????????? | | ?# """ ## ##########?????? | | ?# """ ## # #?????? | | ?# ## # """ #?????? | +----------------------------------------------------+ Best States ------------- Heat Dissipation 42 Energy Generation 10 Energy Capacity 250 Matter Stores 450 Matter Capacity 450 Sight Range 16 Terrain Scan Density 10 Evasion (%) 42 Targeting Accuracy 6 Item Schematics ----------------- None Robot Schematics ------------------ None Fabricated ------------ Nothing Alien Tech Used ----------------- None Achievements -------------- None Challenges ------------ None Game ------ Seed MinesnifferAlertMantle Manual? 0 Play Time 00:14:15 Cumulative 4.6 hours Start 2024.07.25 @ 11:57:54 End 2024.07.25 @ 13:47:18 Sessions 1 Manual Loads 0 Difficulty Rogue Special Mode None Game No. 15 Rogue 15 Adventurer 0 Explorer 0 Win Type - Total 0 Types 0/0/0/0/0/0/0/0/0 Lore% 5 Gallery% 10 Achievement% 8 Wizard Run 0 Options --------- Layout 0 ASCII 1 Keyboard 1 Movement Vi Keybinds 1 Fullscreen 2 Font 24/Proggy Map View 76x50 Zoom Use 0% Tactical HUD 1 Map Filters NONE Filters NONE Steam 1 RUN: 09174e6a-8ad6-41be-b051-6d49f107698e